bitfinex-derivatives/quotes_ETHF0:USTF0_20251203
["timestamp","ask_amount","ask_price","bid_price","bid_amount"]
[1764797441382,0.00476213,3148.4,3148.3,5.902212]
[1764797441880,4.60786213,3148.4,3148.3,4.6688]
[1764797442682,2.29256213,3148.4,3148.3,4.6688]
[1764797444084,0.00476213,3148.4,3148.3,4.6688]
[1764797444381,0.00476213,3148.4,3148.3,7.8766]
[1764797445483,2.29256213,3148.4,3148.3,7.8766]
[1764797446577,4.60786213,3148.4,3148.3,5.5459]
[1764797446882,4.60786213,3148.4,3148.3,7.8766]
[1764797448684,2.29256213,3148.4,3148.3,7.8766]
[1764797450384,4.60786213,3148.4,3148.3,7.8766]
[1764797452787,2.29256213,3148.4,3148.3,7.8766]
[1764797453089,4.60786213,3148.4,3148.3,7.8766]
[1764797453579,4.60786213,3148.4,3148.3,4.6688]
[1764797455181,2.29256213,3148.4,3148.3,4.6688]
[1764797455584,17.2211,3148.9,3148.8,4.6688]
[1764797455782,17.2211,3148.9,3148.8,5.902212]
[1764797456090,58.0211,3148.9,3148.8,5.902212]
[1764797458286,58.35759173,3148.9,3148.8,5.902212]
[1764797462990,58.35759173,3148.9,3148.6,3.2078]
[1764797462991,4.6031,3148.7,3148.6,7.8766]
[1764797463290,4.93959173,3148.7,3148.6,7.8766]
[1764797464189,3.54429173,3148.7,3148.5,3.69226698]
[1764797464380,3.54429173,3148.7,3148.1,3.2078]
[1764797464381,4.359,3148.2,3148.1,3.2078]
[1764797464584,4.359,3148.2,3148.1,5.367]
[1764797465393,4.359,3148.2,3147.8,0.00476213]
[1764797465394,4.359,3147.9,3147.8,0.00476213]
[1764797465595,4.69628541,3147.9,3147.8,0.00476213]
[1764797467998,5.92969741,3147.9,3147.8,0.00476213]
[1764797469098,46.72969741,3147.9,3147.8,0.00476213]
[1764797473997,46.72887695,3147.9,3147.8,0.00476213]
[1764797478194,46.88767695,3147.9,3147.8,0.00476213]
[1764797478398,2.1002,3147.4,3147.3,7.708]
[1764797478599,14.7082,3147.4,3147.3,7.708]
[1764797478809,16.967,3147.4,3147.3,7.708]
[1764797480509,16.967,3147.4,3147.3,3.2078]
[1764797481313,16.967,3147.4,3147.3,5.367]
[1764797482707,16.967,3147.4,3147.3,7.708]
[1764797483006,3.2078,3147.9,3147.8,4.5002]
[1764797483205,3.2249,3148.5,3148.4,2.1592]
[1764797483412,4.359,3148.5,3148.4,4.5002]
[1764797484214,2.1002,3148.5,3148.4,4.5002]
[1764797484406,4.359,3148.5,3148.4,4.5002]
[1764797485908,10.797,3148.8,3148.7,4.5002]
[1764797486110,2.1002,3148.8,3148.7,4.5002]
[1764797486315,5.31276213,3149.2,3149.1,4.5002]
[1764797486515,2.10496213,3149.2,3149.1,4.5002]
[1764797488014,4.36376213,3149.2,3149.1,4.5002]
[1764797491609,2.10496213,3149.2,3149.1,4.5002]
[1764797492112,4.36376213,3149.2,3149.1,4.5002]
[1764797493016,0.00226024,3149.3,3149.2,4.5002]
[1764797493209,16.964,3149.9,3149.8,4.5002]
[1764797494015,14.7052,3149.9,3149.8,4.5002]
[1764797494219,14.7087145,3149.9,3149.8,4.5040985]
[1764797494717,4.0665145,3149.9,3149.8,4.5040985]
[1764797494919,4.0665145,3149.9,3149.8,2.1630985]
[1764797495919,4.0665145,3149.9,3149.8,0.0038985]
[1764797496115,4.0665145,3149.9,3149.8,4.1472985]
[1764797496325,2.09396213,3150.2,3150.1,4.1434]
[1764797496620,3.2078,3150.6,3150.5,4.1434]
[1764797496621,7.2598,3150.6,3150.5,4.1434]
[1764797497420,7.26356521,3150.6,3150.5,4.1434]
[1764797497622,7.26356521,3150.6,3150.5,2.1617]
[1764797498322,4.0297,3150.2,3150.1,4.2687]
[1764797498521,1.2867,3150.5,3150.0,4.60979]
[1764797498522,5.3019,3150.5,3150.4,4.0852]
[1764797499111,3.21156521,3150.6,3150.0,4.60979]
[1764797499112,7.22676521,3150.6,3150.5,4.0852]
[1764797499517,7.22676521,3150.6,3150.5,1.9782]
[1764797499818,5.3019,3150.5,3150.4,1.9782]
[1764797501122,3.21156521,3150.6,3150.5,1.9782]
[1764797501123,4.01896521,3150.6,3150.5,1.9782]
[1764797501518,4.0152,3150.3,3150.2,4.0852]
[1764797502022,0.00376521,3150.6,3150.2,4.0852]
[1764797502326,2.07846521,3150.6,3150.5,5.3653]
[1764797502930,1.2867,3150.5,3150.0,4.4511]
[1764797503129,2.0747,3150.1,3150.0,8.5363]
[1764797503926,5.3019,3150.5,3150.4,1.9782]
[1764797504223,5.3019,3150.5,3150.0,4.4511]
[1764797504419,2.0747,3150.1,3150.0,8.5363]
[1764797504929,4.0152,3150.1,3150.0,8.5363]
[1764797505530,2.0747,3150.1,3150.0,8.5363]
[1764797506531,5.3019,3150.5,3150.4,1.9782]
[1764797508629,5.3019,3150.5,3150.4,4.0852]
[1764797509331,2.0747,3150.5,3150.4,4.0852]
[1764797511431,4.0152,3150.5,3150.4,4.0852]
[1764797513434,5.3019,3150.5,3150.0,4.6098]
[1764797513638,2.0747,3150.1,3150.0,8.695]
[1764797514427,5.3019,3150.5,3150.4,4.0852]
[1764797514628,4.0152,3150.5,3150.4,4.0852]
[1764797514832,5.3019,3150.5,3150.4,4.0852]
[1764797515536,5.3019,3150.5,3150.4,1.9782]
[1764797516537,5.3019,3150.5,3150.4,4.0852]
[1764797517644,5.63812887,3150.5,3150.4,4.0852]
[1764797517937,5.3019,3150.5,3150.4,4.0852]
[1764797518344,5.63822996,3150.5,3150.4,1.9782]
[1764797518545,2.0747,3150.1,3150.0,12.483]
[1764797518936,4.0152,3150.1,3150.0,3.2078]
[1764797519135,4.35155738,3150.1,3150.0,3.2078]
[1764797519841,4.35155738,3150.1,3150.0,3.192501]
[1764797520035,16.94255738,3150.1,3150.0,3.192501]
[1764797520242,2.41105738,3150.1,3150.0,8.557801]
[1764797520746,4.35155738,3150.1,3150.0,8.557801]
[1764797521343,4.35155738,3150.1,3150.0,3.192501]
[1764797521648,4.0152,3149.9,3149.8,0.0038985]
[1764797521845,4.35155738,3149.9,3149.8,0.0038985]
[1764797522038,4.35155738,3149.9,3149.8,4.0890985]
[1764797523346,4.35155738,3149.9,3149.8,0.0038985]
[1764797525249,3.8117,3149.7,3149.6,3.2078]
[1764797525549,4.14805738,3149.7,3149.6,3.2078]
[1764797525750,9.54415738,3149.7,3148.9,3.2078]
[1764797525939,3.8117,3148.9,3148.5,5.90602164]
[1764797526137,4.14805738,3148.9,3148.0,5.61438925]
[1764797526442,4.14805738,3148.9,3148.8,0.00768639]
[1764797527739,44.94805738,3148.9,3148.8,0.00768639]
[1764797530446,3.8117,3148.1,3148.0,3.1769]
[1764797530843,3.8117,3147.7,3147.6,7.2428]
[1764797531448,3.81451577,3147.7,3147.6,7.24689889]
[1764797532947,3.2078,3148.3,3148.2,4.035]
[1764797534151,3.21127994,3148.3,3148.2,4.035]
[1764797534651,0.00347994,3148.3,3148.2,4.035]
[1764797534955,3.2078,3148.8,3148.7,4.035]
[1764797535449,7.0195,3148.8,3148.7,1.8968]
[1764797535951,7.02204204,3148.8,3148.7,4.035]
[1764797536757,3.8117,3148.6,3148.0,4.3877]
[1764797536952,1.8619,3148.1,3148.0,8.4227]
[1764797537255,3.8117,3148.1,3148.0,8.4227]
[1764797537851,7.0195,3148.3,3148.2,4.035]
[1764797538042,3.2078,3148.3,3148.2,4.035]
[1764797538248,5.0697,3148.3,3148.2,4.035]
[1764797538451,3.8117,3148.1,3148.0,5.2149]
[1764797541056,1.8619,3148.1,3147.6,5.35009889]
[1764797541960,3.8117,3147.7,3147.6,5.10869889]
[1764797542858,3.8117,3147.7,3147.6,3.21189889]
[1764797543056,44.6117,3147.7,3147.6,3.21189889]
[1764797543650,44.6117,3147.7,3147.6,5.10869889]
[1764797544153,40.8,3147.7,3147.6,7.24689889]
[1764797546661,40.8,3147.7,3147.6,5.10869889]
[1764797547665,40.8,3147.7,3147.6,3.21189889]
[1764797547860,5.0697,3148.3,3148.2,4.035]
[1764797548060,3.2078,3148.7,3148.5,1.1799]
[1764797548266,3.2078,3149.1,3149.0,5.2149]
[1764797548874,0.00476213,3149.2,3149.1,4.035]
[1764797549058,43.852,3149.9,3149.1,4.035]
[1764797549059,6.2598,3149.9,3149.8,4.035]
[1764797549253,10.0715,3149.9,3149.5,1.1799]
[1764797549558,3.8117,3149.6,3149.5,3.0767]
[1764797552664,3.8117,3149.6,3149.2,0.00476213]
[1764797552665,3.8117,3149.3,3149.2,0.00476213]
[1764797553257,3.8117,3149.3,3149.2,1.90156213]
[1764797553460,1.8619,3149.3,3149.2,3.72886213]
[1764797553660,3.7747,3149.3,3149.2,0.00476213]
[1764797554365,4.11050873,3149.3,3149.2,0.00476213]
[1764797557566,44.91050873,3149.3,3149.2,0.00476213]
[1764797561170,57.50150873,3149.3,3149.2,0.00476213]
[1764797569277,57.1657,3149.3,3149.2,0.00476213]
[1764797569465,57.1657,3149.3,3149.2,3.60266213]
[1764797571475,3.2078,3149.4,3149.3,3.5979]
[1764797571878,45.7455,3149.8,3149.7,3.5979]
[1764797572977,45.7455,3149.8,3149.5,1.0933]
[1764797572978,3.4693,3149.6,3149.5,4.6912]
[1764797573382,44.0078,3149.8,3149.7,3.5979]
[1764797573876,6.6771,3150.3,3150.2,3.5979]
[1764797574182,7.01310008,3150.3,3150.2,3.5979]
[1764797574378,3.4693,3150.1,3150.0,2.934]
[1764797574770,3.4693,3150.1,3150.0,2.93641013]
[1764797574975,3.47157312,3150.1,3150.0,2.93641013]
[1764797575874,1.73997312,3150.1,3150.0,4.69361013]
[1764797576072,0.00227312,3150.1,3150.0,4.69361013]
[1764797576882,0.00227312,3150.1,3150.0,7.90141013]
[1764797577073,14.3257,3150.6,3150.5,4.6912]
[1764797577275,3.2078,3150.7,3150.5,4.6912]
[1764797577479,4.9455,3151.2,3151.1,3.5979]
[1764797577674,5.28180162,3151.2,3151.1,3.5979]
[1764797577878,42.87400162,3151.2,3151.1,3.5979]
[1764797578180,42.8765988,3151.2,3151.1,3.5979]
[1764797578380,3.4693,3150.9,3150.8,0.00476213]
[1764797578888,4.9455,3151.0,3150.9,3.5979]
[1764797579384,6.6771,3151.0,3150.9,3.5979]
[1764797580185,3.4693,3150.9,3150.8,3.60266213]
[1764797580685,3.4693,3150.9,3150.8,1.84546213]
[1764797581088,3.4693,3150.9,3150.8,0.00476213]
[1764797582084,16.0533,3150.9,3150.8,0.00476213]
[1764797582883,1.7377,3150.3,3150.2,3.2078]
[1764797583087,16.0533,3150.3,3150.2,3.2078]
[1764797583275,16.0533,3150.3,3150.2,6.8057]
[1764797583479,40.8,3150.9,3150.2,6.8057]
[1764797583787,12.583,3150.7,3150.2,6.8057]
[1764797585088,3.6446,3150.3,3150.2,6.8057]
[1764797585682,3.6446,3150.3,3150.2,5.0485]
[1764797585878,16.2266,3150.3,3150.2,3.2078]
[1764797586185,3.6446,3149.8,3149.7,3.2078]
[1764797586390,16.2266,3149.8,3149.7,6.8101]
[1764797586587,16.2266,3149.8,3149.7,3.2078]
[1764797586787,3.6446,3149.6,3149.5,1.0712]
[1764797586987,3.6446,3149.4,3149.3,5.00488316]
[1764797587187,3.6446,3149.4,3149.3,1.4051132]
[1764797587490,6.8524,3149.4,3149.3,1.4051132]
[1764797589888,2.395,3148.6,3148.5,2.835]
[1764797590094,2.395,3148.6,3148.5,4.6956]
[1764797590291,43.195,3148.6,3148.5,1.0933]
[1764797590589,43.195,3148.6,3148.5,2.835]
[1764797590784,43.19808342,3148.6,3148.5,2.83848638]
[1764797590990,43.19808342,3148.6,3148.5,4.69908638]
[1764797592696,0.00308342,3148.6,3148.5,4.69908638]
[1764797594096,40.8,3149.2,3149.1,3.6023]
[1764797594300,0.7998,3150.0,3149.0,1.0712]
[1764797594301,3.21256213,3149.8,3149.2,3.6023]
[1764797594492,15.79656213,3149.8,3149.2,3.6023]
[1764797594691,40.8,3149.7,3149.6,1.7417]
[1764797594896,15.79656213,3149.8,3149.7,3.6023]
[1764797595194,16.99953866,3149.8,3149.7,3.6023]
[1764797595591,15.79893866,3149.8,3149.7,3.6023]
[1764797595793,16.99953866,3149.8,3149.7,3.6023]
[1764797596093,15.79893866,3149.8,3149.7,3.6023]
[1764797596897,0.00713866,3149.8,3149.7,3.6023]
[1764797597193,2.4012,3150.6,3150.5,1.0712]
[1764797597398,1.2006,3150.2,3150.1,6.8101]
[1764797597895,3.2078,3150.7,3150.1,6.8101]
[1764797598100,44.01531534,3150.7,3150.1,6.81486213]
[1764797598508,40.80751534,3150.7,3150.1,6.81486213]
[1764797599299,1.2006,3150.2,3150.1,6.81486213]
[1764797599697,44.01531534,3150.7,3150.1,6.81486213]
[1764797600793,0.00751534,3150.7,3150.6,3.6023]
[1764797601007,3.5302,3151.3,3151.2,1.7417]
[1764797601201,4.4084,3151.5,3151.4,1.7417]
[1764797601402,45.54370663,3151.5,3151.4,1.7417]
[1764797601891,45.54370663,3151.5,3151.4,1.74450194]
[1764797602205,45.54623907,3151.5,3151.4,1.74450194]
[1764797602399,45.21093244,3151.5,3151.4,1.74450194]
[1764797602599,45.21093244,3151.5,3151.4,3.60510194]
[1764797602795,0.00253244,3151.5,3151.4,3.60510194]
[1764797604804,1.20313244,3151.5,3151.4,3.60510194]
[1764797605004,1.20313244,3151.5,3151.4,0.00280194]
[1764797605005,2.40373244,3151.5,3151.4,0.00280194]
[1764797606105,0.00253244,3151.5,3151.4,3.60510194]
[1764797609897,1.20313244,3151.5,3151.4,3.60510194]
[1764797610907,2.40373244,3151.5,3151.4,0.00280194]
[1764797611100,0.00253244,3151.5,3151.4,3.60510194]
[1764797611700,1.20313244,3151.5,3151.4,3.60510194]
[1764797611899,2.40373244,3151.5,3151.4,0.00280194]
[1764797612399,2.40373244,3151.5,3151.4,1.74450194]
[1764797612601,0.00253244,3151.5,3151.4,3.60510194]
[1764797615814,0.00253244,3151.5,3151.4,6.81290194]
[1764797616207,2.06373244,3151.5,3151.4,3.60510194]
[1764797616611,1.20313244,3151.5,3151.4,3.60510194]
[1764797617001,2.06373244,3151.5,3151.4,1.74450194]
[1764797617217,2.06373244,3151.5,3151.4,0.00280194]
[1764797619312,1.97113244,3151.5,3151.4,3.50850194]
[1764797619516,0.00253244,3151.5,3151.4,3.50850194]
[1764797620212,0.77053244,3151.5,3151.4,3.50850194]
[1764797620918,1.53853244,3151.5,3151.4,3.50850194]
[1764797622010,1.53853244,3151.5,3151.4,0.00280194]
[1764797622222,1.87363994,3151.5,3151.4,0.00280194]
[1764797623021,1.87363994,3151.5,3151.4,3.37200194]
[1764797623419,1.87363994,3151.5,3151.4,1.61800194]
[1764797624123,0.33838841,3151.5,3151.4,3.37200194]
[1764797624330,0.00253244,3151.5,3151.4,3.37200194]
[1764797624520,3.2078,3151.7,3151.6,3.3692]
[1764797625622,3.21088884,3151.7,3151.6,3.3692]
[1764797626124,3.54720495,3151.7,3151.6,3.3692]
[1764797628322,4.23060836,3151.7,3151.6,3.3692]
[1764797628526,3.2942,3152.4,3152.3,3.3692]
[1764797629026,3.2942,3152.1,3152.0,2.5862]
[1764797629224,3.2942,3152.1,3152.0,4.3402]
[1764797629424,1.67485182,3152.1,3152.0,4.3402]
[1764797631928,0.00355182,3152.1,3152.0,4.3402]
[1764797632232,1.67485182,3152.1,3152.0,4.3402]
[1764797632834,3.29775182,3152.1,3152.0,4.3402]
[1764797634832,3.29775182,3152.1,3152.0,3.3692]
[1764797635835,3.29775182,3152.1,3152.0,4.3402]
[1764797636832,0.00355182,3152.1,3152.0,4.3402]
[1764797637138,1.67485182,3152.1,3152.0,4.3402]
[1764797637329,0.00355182,3152.1,3152.0,4.3402]
[1764797637630,3.29737476,3152.4,3152.3,3.3692]
[1764797637829,3.29737476,3152.4,3152.3,6.577]
[1764797637830,0.00317476,3152.4,3152.3,6.577]
[1764797638432,0.00663584,3152.4,3152.3,6.577]
[1764797639732,1.67793584,3152.4,3152.3,6.577]
[1764797639933,3.30083584,3152.4,3152.3,6.577]
[1764797640441,3.2942,3152.0,3151.9,6.577]
[1764797642840,3.62729163,3152.0,3151.9,6.577]
[1764797643035,4.60919163,3152.0,3151.9,3.2078]
[1764797643245,4.60919163,3152.0,3151.9,4.823]
[1764797643538,4.60919163,3152.0,3151.9,6.5461]
[1764797643736,5.28973304,3152.0,3151.9,3.2078]
[1764797644735,5.28973304,3152.0,3151.9,4.9387]
[1764797644940,5.28973304,3152.0,3151.9,3.2078]
[1764797645137,3.3777,3151.8,3151.7,0.00476213]
[1764797645434,4.39133304,3151.8,3151.7,0.00476213]
[1764797645641,45.19133304,3151.8,3151.7,0.00476213]
[1764797646033,3.3777,3151.6,3151.5,3.20064383]
[1764797646238,4.39133304,3151.6,3151.5,3.20064383]
[1764797647640,4.39133304,3151.6,3151.5,6.65464383]
[1764797647942,4.39133304,3151.6,3151.5,7.76664383]
[1764797648643,1.01363304,3151.6,3151.5,7.76664383]
[1764797648939,2.02749163,3151.6,3151.5,7.76664383]
[1764797649133,4.39142403,3151.6,3151.5,7.76664383]
[1764797649328,45.19142403,3151.6,3151.5,4.93154383]
[1764797651640,45.19142403,3151.6,3151.5,1.7309]
[1764797652844,44.51079163,3151.6,3151.5,1.7309]
[1764797653039,44.51079163,3151.6,3151.5,3.454]
[1764797653644,0.33309163,3151.6,3151.5,4.566]
[1764797653951,2.02774242,3151.6,3151.5,4.566]
[1764797654242,3.71104242,3151.6,3151.5,4.566]
[1764797654641,0.33334242,3151.6,3151.5,4.566]
[1764797654938,3.3777,3151.6,3151.5,4.566]
[1764797655142,3.71104242,3151.6,3151.5,4.566]
[1764797655843,2.02774242,3151.6,3151.5,4.566]
[1764797656044,1.6944,3151.6,3151.5,4.566]
[1764797656439,3.71108603,3151.6,3151.5,3.454]
[1764797657140,4.3843,3151.5,3151.4,3.21060194]
[1764797657346,4.3843,3151.5,3151.4,4.94150194]
[1764797657643,4.71768933,3151.5,3151.4,3.21060194]
[1764797659847,17.28868933,3151.5,3151.4,3.21060194]
[1764797660533,0.33338933,3151.5,3151.4,6.66460194]
[1764797660736,0.00663584,3152.4,3151.8,3.454]
[1764797660934,15.9487,3152.1,3152.0,3.454]
[1764797661145,16.28190121,3152.1,3152.0,3.454]
[1764797661341,3.38433584,3152.4,3152.3,3.454]
[1764797661543,1.0066,3152.0,3151.8,4.9387]
[1764797661747,15.9497,3152.2,3152.1,3.454]
[1764797662049,16.28289743,3152.2,3152.1,3.454]
[1764797662345,1.6944,3151.9,3151.8,6.6618]
[1764797662537,3.71089743,3151.9,3151.8,6.6618]
[1764797662737,14.2664,3152.2,3152.1,1.7309]
[1764797662949,16.2829159,3152.2,3152.1,3.454]
[1764797663134,16.2829159,3152.2,3152.1,1.7309]
[1764797663744,16.2829159,3152.2,3151.8,6.6618]
[1764797663745,3.3777,3151.9,3151.8,6.6618]
[1764797663947,3.7109159,3151.9,3151.8,6.6618]
[1764797665647,3.7109159,3151.9,3151.8,4.9387]
[1764797666447,3.7109159,3151.9,3151.8,6.6618]
[1764797667148,0.3332159,3151.9,3151.8,6.6618]
[1764797667348,3.3777,3152.1,3152.0,3.454]
[1764797667644,0.33331687,3152.1,3152.0,4.566]
[1764797667950,0.00663584,3152.4,3152.3,3.454]
[1764797668140,0.00663584,3152.4,3152.3,6.6618]
[1764797670840,3.38433584,3152.4,3152.3,3.2078]
[1764797671035,3.71754458,3152.4,3152.3,3.2078]
[1764797671635,3.3777,3152.1,3152.0,4.566]
[1764797671844,3.3777,3152.1,3152.0,3.454]
[1764797672150,4.3843,3152.0,3151.9,3.2078]
[1764797672345,4.71751999,3152.0,3151.9,4.9387]
[1764797672745,1.70103584,3152.4,3152.3,3.454]
[1764797672946,2.03424262,3152.4,3152.3,6.6618]
[1764797673750,3.71754262,3152.4,3152.3,6.6618]
[1764797674551,0.33984262,3152.4,3152.3,6.6618]
[1764797675153,3.67904262,3152.4,3152.3,6.6618]
[1764797675746,3.67904262,3152.4,3152.3,3.2078]
[1764797677650,1.5853,3152.1,3152.0,4.3118]
[1764797677956,16.24140678,3152.1,3152.0,4.3118]
[1764797679647,16.24140678,3152.1,3152.0,3.3816]
[1764797679954,16.24140678,3152.1,3152.0,1.6729]
[1764797680255,16.24140678,3152.1,3152.0,3.2371]
[1764797680557,4.1208,3152.0,3151.9,3.2078]
[1764797680849,4.45400678,3152.0,3151.9,4.817]
[1764797681448,4.45400678,3152.0,3151.9,6.3812]
[1764797681849,3.53470678,3152.0,3151.9,6.3812]
[1764797682754,3.20813584,3152.4,3152.3,3.1734]
[1764797682954,1.98881804,3152.4,3152.3,6.3812]
[1764797683659,0.33991804,3152.4,3152.3,6.3812]
[1764797684456,1.98881804,3152.4,3152.3,6.3812]
[1764797685356,0.9707,3152.0,3151.9,3.2078]
[1764797685561,15.78563884,3152.0,3151.5,3.2078]
[1764797685857,2.7814,3151.2,3151.1,3.2078]
[1764797686049,2.7814,3151.2,3150.7,3.2078]
[1764797686050,2.7814,3150.8,3150.7,3.2078]
[1764797686245,2.7814,3150.8,3150.7,6.3812]
[1764797686454,1.3907,3150.8,3150.7,6.3812]
[1764797686654,1.3907,3150.8,3150.7,6.3847962]
[1764797686953,0.9707,3152.0,3151.1,0.15864]
[1764797687157,0.9707,3152.0,3151.6,3.2078]
[1764797687553,0.9707,3152.5,3151.6,3.2078]
[1764797687760,0.9707,3152.5,3152.0,3.2078]
[1764797687961,41.7707,3152.5,3152.0,3.2078]
[1764797689259,0.9819,3153.0,3152.1,1.68819017]
[1764797689460,0.9819,3153.0,3152.9,3.2078]
[1764797689766,41.7819,3153.0,3152.9,3.2078]
[1764797690154,41.78485484,3153.0,3152.9,3.2078]
[1764797690759,41.78485484,3153.0,3152.6,0.00476213]
[1764797692764,0.00295484,3153.0,3152.9,3.2078]
[1764797693161,0.97365484,3153.0,3152.9,3.2078]
[1764797693763,4.1875,3154.0,3152.9,3.2078]
[1764797693764,4.1875,3154.0,3153.0,6.0]
[1764797694072,0.9797,3154.0,3153.6,3.2078]
[1764797694670,0.9797,3154.0,3153.9,1.91265664]
[1764797694969,0.00329456,3154.0,3153.9,0.00358123]
[1764797695268,0.97399456,3154.0,3153.9,0.00358123]
[1764797697159,2.62289456,3154.0,3153.9,0.00358123]
[1764797697364,4.17549456,3154.0,3153.9,0.00358123]
[1764797697669,0.00329456,3154.0,3153.9,0.00358123]
[1764797697868,0.00329456,3154.0,3153.9,0.16208123]
[1764797698361,0.97399456,3154.0,3153.9,0.16208123]
[1764797698974,2.62289456,3154.0,3153.9,0.00358123]
[1764797701273,4.17549456,3154.0,3153.9,0.00358123]
[1764797701969,0.97399456,3154.0,3153.9,0.00358123]
[1764797702370,2.62289456,3154.0,3153.9,0.00358123]
[1764797702770,0.97399456,3154.0,3153.9,0.00358123]
[1764797703382,4.17549456,3154.0,3153.9,0.00358123]
[1764797703770,3.7355,3153.7,3153.6,3.07037388]
[1764797704074,3.7355,3153.3,3153.2,3.2078]
[1764797704272,44.5355,3153.3,3153.2,3.2078]
[1764797704577,3.7355,3153.3,3153.2,3.2078]
[1764797704779,3.7355,3153.3,3153.2,3.21098939]
[1764797704974,44.5355,3153.3,3153.2,3.21098939]
[1764797707278,44.5355,3153.3,3153.2,0.00318939]
[1764797709180,3.7355,3152.9,3152.8,3.2078]
[1764797710285,3.7355,3152.9,3152.8,3.2109127]
[1764797712890,3.7355,3152.9,3152.8,0.0031127]
[1764797716385,1.3193,3153.0,3152.9,1.198]
[1764797716586,2.1964,3153.3,3153.2,1.198]
[1764797717187,3.7355,3153.3,3153.2,1.198]
[1764797717388,3.7355,3153.3,3153.2,0.599]
[1764797718396,1.3193,3153.5,3153.4,1.198]
[1764797719492,5.0548,3153.5,3153.4,1.198]
[1764797719794,5.0548,3153.5,3153.4,0.599]
[1764797720293,3.7355,3153.3,3153.2,3.2078]
[1764797720491,2.1964,3152.9,3152.8,3.2109127]
[1764797720690,3.7355,3152.9,3152.8,3.2109127]
[1764797723800,3.7355,3152.9,3152.8,0.0031127]
[1764797726514,1.5391,3151.9,3151.8,5.268]
[1764797726804,3.5157,3152.0,3151.9,3.5978]
[1764797727201,5.0548,3152.0,3151.9,3.5978]
[1764797727405,5.0548,3152.0,3151.9,3.60123295]
[1764797727900,5.0548,3152.0,3151.9,2.06363295]
[1764797728207,5.0548,3152.0,3151.9,3.60123295]
[1764797730005,5.0548,3152.0,3151.9,2.06363295]
[1764797730205,5.0548,3152.0,3151.9,0.00343295]
[1764797731009,5.0548,3152.0,3151.9,3.60123295]
[1764797731205,0.00476213,3152.3,3152.2,3.5978]
[1764797731811,2.20116213,3152.3,3152.2,7.3858]
[1764797732008,2.20116213,3152.3,3152.2,10.5936]
[1764797732210,0.00476213,3152.3,3152.2,10.75219]
[1764797732410,5.0548,3152.0,3151.9,0.00343295]
[1764797733411,5.0548,3152.0,3151.9,2.06363295]
[1764797734612,5.0548,3152.0,3151.9,0.00343295]
[1764797735416,5.0548,3152.0,3151.9,2.06843295]
[1764797735615,4.14906213,3152.3,3152.2,2.065]
[1764797736010,4.14906213,3152.3,3151.9,0.00343295]
[1764797736308,4.14906213,3152.3,3152.2,4.2041]
[1764797736508,0.00476213,3152.3,3152.2,4.2041]
[1764797737814,2.07236213,3152.3,3152.2,8.15069]
[1764797738408,0.00476213,3152.3,3152.2,8.15069]
[1764797740118,0.00476213,3152.3,3152.2,11.35849]
[1764797741413,8.4924,3153.0,3152.9,2.1104]
[1764797741614,8.4924,3153.0,3152.5,3.788]
[1764797746117,1.9913,3152.6,3152.5,7.9406]
[1764797748424,4.5271,3153.0,3152.5,7.9406]
[1764797748814,1.9913,3152.6,3152.5,7.9406]
[1764797749017,3.9653,3152.6,3152.5,7.9406]
[1764797749420,1.9913,3152.6,3152.5,7.9406]
[1764797750127,1.9913,3152.6,3152.5,9.06418851]
[1764797751327,3.9653,3152.6,3152.5,9.06418851]
[1764797751720,1.9913,3152.6,3152.5,9.06418851]
[1764797753030,4.5271,3153.0,3152.5,9.06418851]
[1764797753322,8.4924,3153.0,3152.9,2.1104]
[1764797753528,1.9913,3152.6,3152.5,9.06418851]
[1764797753820,1.9913,3152.6,3145.8,19.22952265]
[1764797753821,5.1762,3152.0,3151.6,0.00476213]
[1764797754025,8.384,3152.0,3151.9,2.11383295]
[1764797754223,8.384,3152.0,3151.9,0.00343295]
[1764797756931,3.9653,3151.7,3151.6,0.00476213]
[1764797757327,3.9653,3151.0,3150.9,7.3604]
[1764797757523,5.1762,3151.0,3150.9,7.3604]
[1764797757725,5.1762,3151.0,3150.9,3.2078]
[1764797757923,5.18015417,3151.0,3150.9,3.21168]
[1764797758230,5.18015417,3151.0,3150.9,7.36428]
[1764797758231,0.00395417,3151.0,3150.9,7.36428]
[1764797758631,1.99525417,3151.0,3150.9,7.36428]
[1764797758831,3.96925417,3151.0,3150.9,7.36428]
[1764797759028,5.18015417,3151.0,3150.9,7.36428]
[1764797759726,3.20615417,3151.0,3150.9,7.36428]
[1764797759932,0.00395417,3151.0,3150.9,13.52293]
[1764797760136,4.4187,3152.0,3151.2,4.1526]
[1764797760430,4.4187,3152.0,3151.2,4.31124]
[1764797761032,0.00476213,3151.9,3151.2,4.31124]
[1764797761229,0.00476213,3151.9,3151.8,4.1526]
[1764797762744,3.97006213,3151.9,3151.8,4.1526]
[1764797762936,1.99606213,3151.9,3151.8,4.1526]
[1764797763135,0.00476213,3151.9,3151.8,4.1526]
[1764797763435,1.99606213,3151.9,3151.8,4.1526]
[1764797763627,4.054,3151.7,3151.6,3.98461]
[1764797763831,4.054,3151.7,3151.6,2.01471]
[1764797764137,4.054,3151.7,3151.6,3.98461]
[1764797764829,4.054,3151.7,3151.4,3.2078]
[1764797765037,4.054,3151.5,3151.4,7.0338]
[1764797765632,5.2035,3151.5,3151.4,7.0338]
[1764797765829,5.2035,3151.5,3151.0,3.2078]
[1764797765830,1.1495,3151.5,3151.0,3.2078]
[1764797766135,1.1495,3151.5,3150.9,0.00388]
[1764797766136,8.4113,3151.5,3150.9,0.00388]
[1764797766336,2.0284,3151.0,3150.9,3.82988]
[1764797768542,3.2078,3151.5,3151.4,3.826]
[1764797769636,2.0284,3151.1,3151.0,3.826]
[1764797769939,5.2362,3151.5,3151.4,3.826]
[1764797770141,3.2078,3151.5,3151.4,3.826]
[1764797770639,4.054,3151.2,3151.1,3.98464]
[1764797770839,4.3573,3151.5,3151.1,3.98464]
[1764797771039,6.3857,3151.5,3151.4,3.826]